[Event "Romanian Championship 2024"]
[Site "Eforie Nord"]
[Date "2024.02.24"]
[Round "1.13"]
[White "Antonica, Dragos-Andrei"]
[Black "Costescu, Mihnea-Constantin"]
[Result "0-1"]
[ECO "A22"]
[WhiteElo "2366"]
[BlackElo "1944"]
[Annotator "TA"]
[PlyCount "78"]
[EventDate "2024.02.24"]
[EventType "swiss"]
[EventCountry "ROU"]
[SourceTitle "playchess.com"]
[Source "ChessBase"]
[SourceQuality "1"]
[TimeControl "40/5400+30:900+30"]

{[%evp 13,78,0,35,29,36,42,33,23,39,31,52,40,51,37,66,64,65,70,70,75,98,56,41,50,82,73,75,73,91,107,116,118,122,116,227,223,223,45,63,0,116,62,130,26,20,12,21,0,0,0,0,0,0,0,0,-75,-75,-176,-189,-824,-817,-29973,-29974,-29974,-29975,-29972,-29973]} 1. c4 {[%emt 0:00:04]} e5 {[%emt 0:00:08]} 2. Nc3 {[%emt 0:00:06]} Nf6 {[%emt 0:00:18]} 3. g3 {[%emt 0:00:38]} Bb4 {[%emt 0:03:47]} 4. Bg2 {[%emt 0:01:04]} Bxc3 {[%emt 0:00:29]} 5. bxc3 {[%emt 0:08:22]} O-O {[%emt 0:03:54]} 6. e4 {[%emt 0:04:37]} d6 {[%emt 0:07:03]} 7. Ne2 {[%emt 0:04:38]} c5 {[%emt 0:08:55]} 8. d3 {[%emt 0:05:16]} h6 {[%emt 0:05:46]} 9. O-O {[%emt 0:02:22]} Nc6 {[%emt 0:01:39]} 10. h3 {[%emt 0:02:15] White is slightly better.} Rb8 {[%emt 0:13:49]} 11. a4 {[%emt 0:07:57]} a6 {[%emt 0:07:39]} 12. Rb1 {[%emt 0:04:32]} Bd7 {[%emt 0:02:58]} 13. Be3 {[%emt 0:08:53]} Qa5 {[%emt 0:05:26]} 14. f4 {[%emt 0:05:09]} Kh7 {[%emt 0:08:46]} 15. Qd2 {[%emt 0:06:43]} Ng8 {[%emt 0:04:03]} 16. Ra1 {[%emt 0:10:01]} Qc7 {[%emt 0:02:20]} 17. fxe5 {[%emt 0:07:04]} Nxe5 {[%emt 0:00:54]} 18. Nf4 {[%emt 0:04:01]} Bc6 {[%emt 0:02:25]} 19. Qe2 {[%emt 0:05:21]} b5 {[%emt 0:02:49]} 20. cxb5 {[%emt 0:01:02]} axb5 {[%emt 0:00:11]} 21. d4 {[%emt 0:01:57]} cxd4 {[%emt 0:02:08]} 22. cxd4 {[%emt 0:00:27]} Nc4 {[%emt 0:00:46]} 23. Bf2 {[%emt 0:00:07]} Rfe8 {[%emt 0:02:45]} (23... Rfc8 $16) 24. Rfc1 $18 {[%emt 0:01:17]} Nf6 {[%emt 0:02:22][%cal Rc6e4] [#]} 25. axb5 $2 {[%emt 0:02:00]} (25. d5 $1 $18 {[%cal Rd5c6]} Bd7 26. Bd4) 25... Bxb5 $14 {[%emt 0:00:31]} 26. d5 {[%emt 0:03:04]} (26. Nh5 $14) 26... Rb7 {[%emt 0:02:02]} (26... Nd7 $11 {keeps the balance.}) 27. Rab1 {[%emt 0:01:11]} (27. Qd3 $16 {Black must now prevent e5+.} g6 28. Rab1) 27... Rc8 {[%emt 0:03:43]} (27... Ba6 $1 $14) 28. Bd4 {[%emt 0:03:21]} ({White should play} 28. e5 $16 dxe5 29. d6 Nxd6 (29... Qxd6 $2 {is the wrong capture.} 30. Qc2+ Kh8 31. Bxb7 $18) 30. Rxc7 (30. Qxe5 Qxc1+ 31. Rxc1 Rxc1+ 32. Kh2 Rd7 $11) 30... Bxe2 31. Rbxb7 (31. Bxb7 $2 {too greedy.} Rxc7 32. Nxe2 Rxb7 $19) 31... Rxc7 32. Rxc7 exf4 33. gxf4) 28... Nd7 $11 {[%emt 0:03:53]} 29. Kh2 {[%emt 0:00:41][%cal Oe4e5] Threatens to win with e5!} Nde5 {[%emt 0:00:23]} 30. Nd3 {[%emt 0:00:47]} Qd7 {[%emt 0:01:11]} 31. Bxe5 {[%emt 0:00:30]} Nxe5 {[%emt 0:00:50]} 32. Rxb5 {[%emt 0:00:30]} Qxb5 {[%emt 0:00:29]} 33. Rxc8 {[%emt 0:00:29]} Qxd3 {[%emt 0:00:28]} 34. Qf2 {[%emt 0:00:24] [#]} (34. Qxd3 $11 Nxd3 35. Rc6) 34... Rb3 $1 $17 {[%emt 0:00:54] Black is more active.} 35. Rf8 {[%emt 0:00:38]} (35. Rc7 $17 {keeps fighting.}) 35... Rc3 $19 {[%emt 0:00:44]} 36. Qf5+ $2 {[%emt 0:00:28]} (36. Kh1) 36... Ng6 {[%emt 0:00:16]} 37. Rxf7 {[%emt 0:00:29]} Qxg3+ {[%emt 0:00:25] Black mates.} 38. Kh1 {[%emt 0:00:02]} Rc1+ {[%emt 0:00:21]} 39. Bf1 {[%emt 0:00:03]} Rc2 {[%emt 0:00:28] Quite a comeback for Black.   Weighted Error Value: White=0.58/Black=0.20 (precise) .  Missed win:     	White=1     	---        Mistake:       	White=6     	Black=3      Inaccurate:     	White=2     	Black=2      OK:         	White=10    	Black=9      Best:        	---       	Black=2      Strong:       	---       	Black=1} 0-1

[Event "Romanian Championship 2024"]
[Site "Eforie Nord"]
[Date "2024.02.24"]
[Round "1.14"]
[White "Armenciu, Bogdan-Ovidiu"]
[Black "David, Alexandru-Vasile"]
[Result "1/2-1/2"]
[ECO "B80"]
[WhiteElo "1936"]
[BlackElo "2360"]
[Annotator "TA"]
[PlyCount "104"]
[EventDate "2024.02.24"]
[EventType "swiss"]
[EventCountry "ROU"]
[SourceTitle "playchess.com"]
[Source "ChessBase"]
[SourceQuality "1"]
[TimeControl "40/5400+30:900+30"]

{[%evp 13,104,0,0,-2,26,0,22,-29,58,32,94,90,99,97,94,85,104,85,155,146,309,269,364,282,297,279,302,300,298,291,285,270,265,220,281,256,272,229,241,241,266,256,247,233,208,146,139,58,104,43,115,0,0,0,14,0,0,0,0,0,8,8,8,8,8,-172,8,8,8,8,8,8,8,8,8,8,8,8,8,8,8,8,8,8,8,8,8,8,8,0,8,0,8]} 1. e4 {[%emt 0:00:05]} c5 {[%emt 0:00:09]} 2. Nf3 {[%emt 0:00:07]} d6 {[%emt 0:00:10]} 3. d4 {[%emt 0:00:08]} cxd4 {[%emt 0:00:07]} 4. Nxd4 {[%emt 0:00:05]} Nf6 {[%emt 0:00:10]} 5. Nc3 {[%emt 0:00:04]} a6 {[%emt 0:00:07]} 6. Be3 {[%emt 0:00:42]} e6 {[%emt 0:00:08]} 7. f3 {[%emt 0:08:29]} b5 {[%emt 0:01:13]} 8. a3 {[%emt 0:03:51]} h5 {[%emt 0:01:43][%cal Bh7h5,Bh5h4,Bh4h3][%mdl 32]} 9. Qd2 {[%emt 0:00:40]} Nbd7 {[%emt 0:00:12]} 10. a4 {[%emt 0:04:59]} (10. Be2 $142) 10... bxa4 {[%emt 0:06:23]} ({Besser ist} 10... b4 $11 11. Na2 d5 12. Nxb4 dxe4) 11. Nxa4 {[%emt 0:01:11]} Bb7 {[%emt 0:01:33]} (11... d5 $1 $14) 12. c4 $16 {[%emt 0:14:49][%cal Bc2c4,Bc4c5][%mdl 32]} Be7 {[%emt 0:08:31]} 13. Be2 {[%emt 0:01:05]} h4 {[%emt 0:01:41]} 14. O-O $36 {[%emt 0:01:10][%mdl 2048] Schwarz muss aufpassen.} h3 {[%emt 0:00:07]} 15. g4 {[%emt 0:02:01][%cal Bg2g4,Bg4g5][%mdl 32]} g6 {[%emt 0:03:45]} (15... Ne5 $142) 16. b4 {[%emt 0:05:11]} Kf8 $2 {[%emt 0:07:57] [#]} (16... O-O $16 {ist eine bessere Verteidigung.} 17. Rfc1 Rc8) 17. c5 $1 $18 {[%emt 0:17:01][%mdl 512]} Ne5 {[%emt 0:24:29]} (17... dxc5 18. bxc5) 18. g5 {[%emt 0:06:19]} Ne8 {[%emt 0:02:13] [#]} 19. c6 $1 {[%emt 0:07:53][%mdl 512]} Bxc6 {[%emt 0:10:36]} 20. Nxc6 {[%emt 0:01:11]} Nxc6 {[%emt 0:00:06]} 21. Qc3 {[%emt 0:01:15][%csl LRc6,LRh8][%cal Rc3h8]} Ne5 {[%emt 0:02:41][%cal Of8g8]} 22. f4 {[%emt 0:00:34]} Rc8 {[%emt 0:00:05]} 23. Qb2 {[%emt 0:01:27]} Rh4 {[%emt 0:00:50]} 24. fxe5 {[%emt 0:00:28]} Bxg5 {[%emt 0:00:36]} 25. Qd2 {[%emt 0:12:05]} Bxe3+ {[%emt 0:00:33]} 26. Qxe3 {[%emt 0:00:01]} dxe5 {[%emt 0:02:01]} 27. Nc5 {[%emt 0:00:17]} (27. Bxa6 $6 Rc2 28. Kh1 Qd2 29. Qxd2 Rxd2 $16) 27... Rf4 {[%emt 0:00:52]} 28. Rxa6 {[%emt 0:07:40] Aktives Gegenspiel!} (28. Bxa6 Rb8 29. Rab1 (29. Qxh3 Qd4+ 30. Kh1 Kg8 $16) 29... Kg7) (28. Qxh3 Qd4+ 29. Kg2 Qxb4 30. Qh8+ (30. Nxa6 $2 Qxe4+ 31. Bf3 Qc2+ 32. Kh1 Kg7 $19) 30... Ke7 31. Qxe5 (31. Bxa6 $2 Rxc5 32. Rxf4 exf4 $19) (31. Rxf4 exf4 32. Qh6 f3+ 33. Kxf3 Qc3+ 34. Qe3 Qxa1 $19) 31... Rxf1 $14 (31... Qxc5 $2 32. Qxf4 Nd6 33. Rac1 $18)) 28... Kg8 {[%emt 0:04:32]} 29. Rxf4 {[%emt 0:01:13]} ({Minderwertig wäre} 29. Qxh3 Qd4+ 30. Kg2 Rxf1 31. Kxf1 (31. Bxf1 Qxb4 32. Nxe6 Qd2+ 33. Kh1 Rc3 $11) 31... Qxb4 $11) 29... exf4 {[%emt 0:00:05]} 30. Qf2 {[%emt 0:00:57]} ({Viel schwächer wäre} 30. Qxh3 $6 Qd4+ 31. Kg2 Qxb4 $11) (30. Qxf4 $16 {Zielt auf e5 ab.} Qd4+ 31. Kf1) 30... e5 {[%emt 0:00:55]} (30... Qg5+ $14 31. Kh1 Qe5) 31. Bf1 {[%emt 0:00:43]} (31. Ra1 $16) 31... Qd1 {[%emt 0:01:43] [#]} ({Vorzuziehen ist} 31... Nf6 $1 $14) 32. Ra2 {[%emt 0:00:43]} (32. Ra3 $1 $16) 32... Nf6 $1 $11 {[%emt 0:00:19]} 33. Rd2 {[%emt 0:00:29]} Qb1 {[%emt 0:02:31][%csl LRb4,LRe4]} 34. Rb2 {[%emt 0:00:11]} Qd1 {[%emt 0:00:07]} 35. Qe2 {[%emt 0:00:49]} Qd4+ {[%emt 0:00:19]} 36. Kh1 {[%emt 0:00:20][%cal Oe2d2] Droht Qd2! und aus.} Rb8 {[%emt 0:00:03]} 37. Bxh3 {[%emt 0:01:32]} Rxb4 {[%emt 0:00:07]} 38. Rxb4 {[%emt 0:00:39]} Qxb4 {[%emt 0:00:07]} 39. Nd7 {[%emt 0:01:36] [#]} (39. Nd3 $11 Qxe4+ 40. Qxe4 Nxe4 41. Nxe5) 39... Qxe4+ $2 {[%emt 0:05:07]} ({Günstiger ist} 39... Nxd7 $1 $19 40. Bxd7 f3) 40. Qxe4 {[%emt 0:00:00] Die Stellung ist ausgeglichen.} Nxe4 {[%emt 0:00:00]} 41. Nxe5 {[%emt 0:00:00]} Kg7 {[%emt 0:00:30]} 42. Nd3 {[%emt 0:02:30]} g5 {[%emt 0:00:07]} 43. Kg2 {[%emt 0:02:58]} f6 {[%emt 0:00:31]} 44. Kf3 {[%emt 0:00:16]} Nd2+ {[%emt 0:00:25]} 45. Ke2 {[%emt 0:01:23]} Ne4 {[%emt 0:00:06]} 46. Bf5 {[%emt 0:00:50]} Nd6 {[%emt 0:00:05]} 47. Bd7 {[%emt 0:00:02]} f5 {[%emt 0:00:44]} 48. Kf3 {[%emt 0:01:56]} Kf6 {[%emt 0:00:07]} 49. Nb4 {[%emt 0:01:16]} Ke5 {[%emt 0:00:59]} 50. Nc6+ {[%emt 0:00:27]} Kf6 {[%emt 0:00:05]} 51. Nb4 {[%emt 0:02:40]} Ke5 {[%emt 0:00:09]} 52. Nd3+ {[%emt 0:01:28]} Kf6 {[%emt 0:00:07] Weiß hat ein paar 100-prozentige Torchancen vergeben.   Gewichteter Fehlerwert: Weiß=0.26 (präzise) /Schwarz=0.26 (präzise) .  Verlustzug:     	Weiß=1     	Schwarz=1     Gewinn verpasst:   	---       	Schwarz=1     Fehler:       	Weiß=4     	Schwarz=5     Ungenau:       	Weiß=1     	Schwarz=2     OK:         	Weiß=10    	Schwarz=23    Bester:       	Weiß=3     	Schwarz=1     Stark:        	---       	Schwarz=1} 1/2-1/2

[Event "Romanian Championship 2024"]
[Site "Eforie Nord"]
[Date "2024.02.24"]
[Round "1.15"]
[White "Cosma, Ioan"]
[Black "Corbu, George-Alexandru"]
[Result "1/2-1/2"]
[ECO "E05"]
[WhiteElo "2316"]
[BlackElo "1902"]
[Annotator "TA"]
[PlyCount "78"]
[EventDate "2024.02.24"]
[EventType "swiss"]
[EventCountry "ROU"]
[SourceTitle "playchess.com"]
[Source "ChessBase"]
[SourceQuality "1"]
[TimeControl "40/5400+30:900+30"]

{[%evp 24,78,-25,-31,-20,-48,-39,-58,-58,-33,-42,-58,-35,-84,-83,-68,-68,-65,-71,-78,-77,-102,-69,-77,-22,-25,-6,-22,0,0,0,-28,0,-7,0,0,45,46,43,42,37,33,150,0,0,-78,0,-385,-399,-369,-285,-364,-183,-264,-225,-597,-176]} 1. Nf3 {[%emt 0:00:37]} d5 {[%emt 0:00:38]} 2. d4 {[%emt 0:00:08]} e6 {[%emt 0:01:23]} 3. c4 {[%emt 0:00:18]} Nf6 {[%emt 0:00:51]} 4. g3 {[%emt 0:00:53]} Be7 {[%emt 0:00:51]} 5. Bg2 {[%emt 0:00:12]} O-O {[%emt 0:00:24]} 6. O-O {[%emt 0:00:31]} dxc4 {[%emt 0:00:52]} 7. Qc2 {[%emt 0:00:12]} a6 {[%emt 0:00:40]} 8. a4 {[%emt 0:00:20]} Bd7 {[%emt 0:02:30][%cal Bc8d7,Bd7c6,Bc6e4][%mdl 32]} 9. Qxc4 {[%emt 0:01:19]} Bc6 {[%emt 0:01:15]} 10. Nc3 {[%emt 0:00:09]} b5 {[%emt 0:01:13]} 11. Qd3 {[%emt 0:03:42]} b4 {[%emt 0:01:35]} 12. Nb1 {[%emt 0:00:40]} Be4 {[%emt 0:05:26]} 13. Qd1 {[%emt 0:02:02]} Nbd7 {[%emt 0:08:36]} 14. Bg5 {[%emt 0:04:47]} c5 {[%emt 0:06:06]} 15. Nbd2 {[%emt 0:00:12]} Bd5 {[%emt 0:05:30] Black is slightly better.} 16. Rc1 {[%emt 0:06:57]} Rc8 {[%emt 1:00:40]} 17. b3 {[%emt 1:16:01]} Bb7 {[%emt 0:00:00]} (17... cxd4 $5 18. Rxc8 Qxc8 19. Nxd4 Bc5 20. Bxd5 Nxd5 $15) 18. Ne5 {[%emt 0:00:00]} (18. dxc5 $15 Nxc5 19. Be3) 18... Bxg2 $17 {[%emt 0:00:00]} ({Don't play} 18... cxd4 $6 19. Bxb7 Rxc1 20. Qxc1 $14) 19. Kxg2 cxd4 {[%emt 0:00:00]} 20. Rxc8 {[%emt 0:00:00]} Qxc8 {[%emt 0:00:00]} 21. Nxd7 {[%emt 0:00:00]} Qxd7 {[%emt 0:00:00]} 22. Nf3 {[%emt 0:00:00]} Rd8 {[%emt 0:00:00]} 23. Qd3 {[%emt 0:00:00]} a5 {[%emt 0:00:00]} (23... Qb7 $17 {Hoping for ...e5.} 24. Rc1 h6) 24. Rc1 $11 {[%emt 0:00:00]} h6 {[%emt 0:00:00]} 25. Bxf6 {[%emt 0:00:00]} gxf6 {[%emt 0:00:00]} 26. Rc4 {[%emt 0:00:00]} e5 {[%emt 0:00:00]} 27. Qe4 {[%emt 0:00:00]} h5 {[%emt 0:00:00]} 28. Nd2 {[%emt 0:00:00]} Qe6 {[%emt 0:01:48]} 29. Rc7 {[%emt 0:00:00]} Bf8 {[%emt 0:02:11]} 30. Nc4 {[%emt 0:00:00][%cal Oc7a7][%mdl 1024] White has compensation.} Rd5 {[%emt 0:01:03]} 31. Rb7 {[%emt 0:00:00]} f5 $1 {[%emt 0:00:57]} 32. Qh4 {[%emt 0:00:00][%cal Ob7b6] Strongly threatening Rb6!} Qg6 {[%emt 0:01:05] [#]} (32... d3 $14 33. exd3 (33. Qxh5 d2 $17) 33... f4) 33. Rb8 {[%emt 0:00:00] White has more active pieces.} (33. Rb6 $1 $16 {[%cal Rb6g6]} Qg4 34. Qxg4+ fxg4 (34... hxg4 $2 {loses.} 35. Rb5 $18) 35. Rb5 Rxb5 36. axb5) 33... f6 {[%emt 0:00:53]} 34. Rb5 {[%emt 0:00:00]} (34. Nb6 $11 Rd6 35. Nc4) 34... Qf7 {[%emt 0:00:27]} ({Better is} 34... Rxb5 $17 35. axb5 a4 36. bxa4 b3) 35. Kg1 $2 {[%emt 0:00:00][%mdl 8192]} (35. Rxd5 $11 {and White is okay.} Qxd5+ 36. Kg1) 35... Rxb5 $19 {[%emt 0:00:16]} 36. axb5 {[%emt 0:00:00] [#]} a4 {[%emt 0:00:00][%mdl 512]} 37. Qh3 {[%emt 0:00:00] [#]} (37. b6 Kg7) 37... axb3 {[%emt 0:00:33]} (37... a3 $142 $1 38. Qf1 Bc5) 38. Nd2 {[%emt 0:00:49]} (38. Nb2 $142) 38... Bh6 {[%emt 0:00:40]} 39. f4 $2 {[%emt 0:02:22]} (39. Nb1 {nothing else works.}) 39... Qe6 $2 {[%emt 0:00:44] Weighted Error Value: White=0.60/Black=0.33.  Loses game:     	White=1     	---        Mistake:       	White=5     	Black=5      Inaccurate:     	White=2     	Black=3      OK:         	White=6     	Black=6      Best:        	White=2     	Black=3      Strong:       	---       	Black=1      Brilliant:      	---       	Black=1} (39... exf4 40. b6 b2) 1/2-1/2

[Event "Romanian Championship 2024"]
[Site "Eforie Nord"]
[Date "2024.02.24"]
[Round "1.16"]
[White "Danila, Tudor-Gabriel"]
[Black "Cnejev, Vladimir-Alexandru"]
[Result "0-1"]
[ECO "C47"]
[WhiteElo "1901"]
[BlackElo "2311"]
[Annotator "TA"]
[PlyCount "124"]
[EventDate "2024.02.24"]
[EventType "swiss"]
[EventCountry "ROU"]
[SourceTitle "playchess.com"]
[Source "ChessBase"]
[SourceQuality "1"]
[TimeControl "40/5400+30:900+30"]

{[%evp 17,124,0,0,0,0,0,14,-8,1,-143,-128,-118,-151,-151,-144,-261,-265,-264,-254,-258,-251,-261,-259,-277,-277,-348,-343,-361,-286,-282,-289,-271,-148,-159,-134,-168,-174,-176,-167,-178,-183,-173,-185,-176,-175,-231,-237,-347,-354,-344,-372,-366,-364,-406,-396,-427,-416,-499,-493,-517,-502,-523,-498,-489,-489,-492,-468,-549,-552,-706,-699,-668,-686,-760,-563,-725,-692,-705,-683,-1411,-752,-724,-737,-825,-808,-949,-948,-966,-803,-745,-562,-550,-556,-4922,-5094,-4910,-4910,-4894,-3282,-29992,-29993,-29993,-29994,-29995,-29996,-29996,-29997,-29997,-29998]} 1. e4 {[%emt 0:00:02]} e5 {[%emt 0:00:13]} 2. Nf3 {[%emt 0:00:04]} Nc6 {[%emt 0:00:08]} 3. Nc3 {[%emt 0:00:09]} Nf6 {[%emt 0:00:06]} 4. d4 {[%emt 0:00:04]} exd4 {[%emt 0:00:06]} 5. Nxd4 {[%emt 0:00:03]} Bb4 {[%emt 0:00:09]} 6. Nxc6 {[%emt 0:00:04]} bxc6 {[%emt 0:00:07]} 7. Bd3 {[%emt 0:00:04]} O-O {[%emt 0:00:13]} 8. O-O {[%emt 0:00:03]} d5 {[%emt 0:00:14]} 9. exd5 {[%emt 0:00:05]} cxd5 {[%emt 0:00:07]} 10. h3 {[%emt 0:00:03]} Rb8 {[%emt 0:00:27]} 11. Qf3 {[%emt 0:00:26]} Rb6 {[%emt 0:00:39]} 12. Bf4 {[%emt 0:02:20] The position is equal.} Bb7 {[%emt 0:25:43]} 13. Nb5 {[%emt 0:26:34]} (13. a3 $11 {remains equal.} d4 14. Ne4) 13... d4 $17 {[%emt 0:03:56]} 14. Qg3 {[%emt 0:07:55]} Nh5 {[%emt 0:01:05]} 15. Bxc7 {[%emt 0:00:14]} Qd5 {[%emt 0:00:08] Some like it hot} 16. Qg4 {[%emt 0:07:10]} (16. c4 $2 dxc3 17. Qg4 Nf6 $19 (17... Rxb5 $2 18. Rad1 $19) (17... Qxd3 $2 18. Bxb6 Qxb5 19. bxc3 $19)) (16. Qh2 $17 {was the only chance.} Rxb5 17. Bxb5 Qxb5 18. a3) 16... Rxb5 $19 {[%emt 0:11:25]} 17. Bxb5 {[%emt 0:03:07]} Qxb5 {[%emt 0:00:21]} 18. a3 {[%emt 0:04:27]} Nf6 {[%emt 0:03:06]} 19. Qg3 {[%emt 0:00:32] White is weak on the light squares} Bd2 {[%emt 0:14:36][%cal Of8e8] This pair of bishops is nice.} 20. Be5 {[%emt 0:12:49]} Nh5 {[%emt 0:00:40]} 21. Qh2 {[%emt 0:01:35]} Qd5 {[%emt 0:01:18] Hoping for ...Rc8.} ({Stronger than} 21... Qxb2 22. Rab1 Qxc2 23. Rxb7 $18) 22. Rad1 {[%emt 0:00:57] [#]} Bf4 {[%emt 0:02:48][%mdl 512]} 23. Bxf4 {[%emt 0:00:06]} Nxf4 {[%emt 0:00:03]} 24. f3 {[%emt 0:00:08]} Qf5 {[%emt 0:05:25]} (24... Ne2+ $19 25. Kh1 Qc6) 25. Rfe1 {[%emt 0:00:42]} Ne6 {[%emt 0:01:35] Black has more active pieces.} 26. Re2 {[%emt 0:03:09]} Qb5 $36 {[%emt 0:03:20][%csl LRb2,LRe2][%mdl 2048] Black is in control.} 27. Qe5 {[%emt 0:01:17]} Qxb2 {[%emt 0:00:28][%cal Ob7c6]} 28. f4 {[%emt 0:00:26]} Qb6 {[%emt 0:08:44] Strongly threatening ...d3+.} 29. Kh2 {[%emt 0:01:43]} Rd8 {[%emt 0:01:07]} 30. f5 {[%emt 0:01:25] [#]} Nf8 {[%emt 0:00:07]} 31. Rd3 {[%emt 0:04:28]} (31. Qg3 $142) 31... Rd5 {[%emt 0:03:20]} 32. Qe4 {[%emt 0:03:30]} (32. Qf4 {was worth a try.}) 32... Qd6+ {[%emt 0:00:40]} 33. Rg3 {[%emt 0:00:05]} Bc8 {[%emt 0:02:45]} 34. Rf2 {[%emt 0:00:08]} f6 {[%emt 0:06:03]} 35. h4 {[%emt 0:05:09]} Qe5 {[%emt 0:03:00]} 36. Qxe5 {[%emt 0:01:37]} fxe5 {[%emt 0:00:09]} (36... Rxe5 37. Rf4 $19) 37. f6 {[%emt 0:00:15]} g6 {[%emt 0:00:25]} 38. Rb3 {[%emt 0:01:26]} Kf7 {[%emt 0:00:55]} 39. Rb8 {[%emt 0:00:10]} Rc5 {[%emt 0:01:31]} 40. g4 {[%emt 0:00:00]} Rc7 {[%emt 0:00:00]} 41. g5 {[%emt 0:01:08]} Bf5 {[%emt 0:05:54][%cal Of8e6]} 42. Re2 {[%emt 0:00:30]} e4 {[%emt 0:01:12]} ({Less strong is} 42... Bxc2 43. Rxe5 d3 44. Rd5 $17) 43. Kg2 {[%emt 0:04:52]} e3 {[%emt 0:01:01]} 44. Kf3 {[%emt 0:02:31]} Bxc2 {[%emt 0:01:38] Threatens to win with ...Bd1.} 45. Rh2 {[%emt 0:00:29]} Bf5 {[%emt 0:04:34]} 46. Rhb2 {[%emt 0:05:06]} Nd7 {[%emt 0:01:03]} 47. Rh8 {[%emt 0:00:53]} Ne5+ {[%emt 0:01:11]} 48. Kg3 {[%emt 0:00:11]} Ke6 {[%emt 0:00:10] aiming for ...d3.} 49. Re8+ {[%emt 0:00:14]} Kd6 {[%emt 0:00:05]} 50. Rb5 {[%emt 0:01:09]} Be6 {[%emt 0:02:59] And now ...d3 would win.} 51. Kf4 {[%emt 0:03:13]} Nd3+ {[%emt 0:01:01]} 52. Kf3 {[%emt 0:00:18]} Nc5 {[%emt 0:01:40] ...Bd5+ is the strong threat.} 53. Rd8+ {[%emt 0:07:40]} Ke5 {[%emt 0:00:49]} 54. Re8 {[%emt 0:00:20]} Kf5 {[%emt 0:01:25]} 55. Re7 {[%emt 0:00:19]} Bd5+ {[%emt 0:00:26]} 56. Kg3 {[%emt 0:00:45]} Ne4+ {[%emt 0:00:29]} 57. Kh3 {[%emt 0:00:36]} e2 {[%emt 0:00:36]} 58. f7 {[%emt 0:00:24]} Rc3+ {[%emt 0:00:33] Black mates.} ({Weaker is} 58... e1=R 59. f8=Q+) 59. Kh2 {[%emt 0:00:13]} e1=Q {[%emt 0:00:26]} 60. Rxd5+ {[%emt 0:00:20]} Kg4 {[%emt 0:00:08][%cal Rc3c2]} 61. Rxe4+ {[%emt 0:01:03]} Qxe4 {[%emt 0:00:10]} 62. f8=Q {[%emt 0:00:07]} Rc2+ {[%emt 0:01:48] Weighted Error Value: White=0.49/Black=0.24 (precise) .  Mistake:       	White=4     	Black=1      Inaccurate:     	White=1     	---        OK:         	White=16    	Black=20     Best:        	White=2     	Black=2} 0-1